bitfinex-derivatives/quotes_BNBF0:USTF0_20250316
["timestamp","ask_amount","ask_price","bid_price","bid_amount"]
[1742109604842,0.32950014,606.98,605.84,1.16026121]
[1742109605643,0.32950014,606.98,605.85,1.16026121]
[1742109606438,0.32950014,606.98,605.86,1.16026121]
[1742109606844,0.32950014,606.98,605.87,1.16026121]
[1742109607647,0.32950014,606.98,605.88,1.16026121]
[1742109608240,0.32950014,606.98,605.89,1.16026121]
[1742109608541,0.32950014,606.98,605.81,1.587]
[1742109608946,0.32950014,606.98,605.82,0.30306841]
[1742109609147,0.32950014,606.98,605.83,1.15966661]
[1742109609342,0.32950014,606.98,605.84,0.30306841]
[1742109609947,0.32950014,606.98,605.85,1.15966661]
[1742109610349,0.32950014,606.98,605.86,1.15966661]
[1742109611046,0.32950014,606.98,605.87,1.15966661]
[1742109611742,0.32950014,606.98,605.88,1.15966661]
[1742109612340,0.32950014,606.98,605.89,1.15966661]
[1742109612746,0.32950014,606.98,605.9,1.15966661]
[1742109613243,0.32950014,606.98,605.81,1.587]
[1742109613643,0.32950014,606.98,605.82,1.15965789]
[1742109614143,0.32950014,606.98,605.83,1.15965789]
[1742109614547,0.32950014,606.98,605.84,1.15965789]
[1742109616950,0.32950014,606.98,605.8,1.013]
[1742109617552,2.51296556,606.88,605.8,1.013]
[1742109617847,0.32955987,606.87,605.8,1.013]
[1742109618553,0.32955987,606.87,605.81,0.3031134]
[1742109619853,0.32955987,606.87,605.81,1.3131134]
[1742109620050,0.32955987,606.87,605.81,1.01]
[1742109620955,0.32955987,606.87,605.82,1.160137]
[1742109621354,0.32955987,606.87,605.83,1.160137]
[1742109621859,0.32955987,606.87,605.84,1.160137]
[1742109622356,0.32955987,606.87,605.82,1.160137]
[1742109630057,0.32955987,606.87,605.83,1.16140457]
[1742109630556,0.32955987,606.87,605.84,1.16140457]
[1742109631057,0.32955987,606.87,605.82,1.16140457]
[1742109635056,0.32955987,606.87,605.83,0.33012561]
[1742109635757,0.32955987,606.87,605.84,1.16140457]
[1742109645464,0.32955987,606.87,605.85,1.016]
[1742109645963,0.32955987,606.87,605.86,1.16140457]
[1742109647062,0.32955987,606.87,605.87,1.346]
[1742109647262,0.32955987,606.87,605.88,1.16140457]
[1742109651059,0.32955987,606.87,605.89,1.279]
[1742109651860,0.32955987,606.87,605.9,1.16140457]
[1742109658274,0.32955987,606.87,605.89,1.279]
[1742109666477,3.97400239,606.87,605.89,1.279]
[1742109666673,3.64444252,606.86,605.89,1.279]
[1742109666870,0.32957073,606.85,605.89,1.279]
[1742109672972,0.32957073,606.85,605.85,1.016]
[1742109673779,0.32957073,606.85,605.86,1.486]
[1742109676683,0.32957073,606.85,605.87,1.457]
[1742109680479,1.91566771,606.85,605.87,1.457]
[1742109680683,5.55368136,606.85,605.87,1.457]
[1742109680887,1.58609698,606.84,605.87,1.457]
[1742109681084,0.32958702,606.82,605.87,1.457]
[1742109682185,3.96760067,606.82,605.87,1.457]
[1742109682388,3.63801365,606.81,605.87,1.457]
[1742109682587,0.32958702,606.82,605.87,1.457]
[1742109690302,0.32958702,606.82,605.88,1.163]
[1742109694905,0.32958702,606.82,605.89,1.422]
[1742109702814,2.51296556,606.79,605.89,1.422]
[1742109703007,0.32961418,606.77,605.89,1.422]
[1742109708023,0.32961418,606.77,605.9,1.46]
[1742109723437,2.51296556,606.69,605.9,1.46]
[1742109723631,0.32966308,606.68,605.9,1.46]
[1742109724237,0.32966308,606.68,605.9,2.747]
[1742109727632,5.54492284,606.68,605.9,2.747]
[1742109727839,5.21525976,606.67,605.9,2.747]
[1742109728040,5.54493371,606.66,605.9,2.747]
[1742109728242,5.54493914,606.65,605.9,2.747]
[1742109728442,5.54494458,606.64,605.9,2.747]
[1742109728641,5.21525976,606.63,605.9,2.747]
[1742109728842,3.62822931,606.62,605.9,2.747]
[1742109729041,3.62822931,606.61,605.9,2.747]
[1742109729242,3.62822931,606.6,605.9,2.747]
[1742109729442,3.62822931,606.59,605.9,2.747]
[1742109729643,2.51296556,606.62,605.9,2.747]
[1742109729644,3.62822931,606.58,605.9,2.747]
[1742109729842,3.62822931,606.57,605.9,2.747]
[1742109730039,3.62822931,606.56,605.9,2.747]
[1742109730239,3.62822931,606.55,605.9,2.747]
[1742109730440,3.62822931,606.54,605.9,2.747]
[1742109730642,3.62822931,606.53,605.9,2.747]
[1742109730839,3.62822931,606.52,605.9,2.747]
[1742109731042,3.62822931,606.51,605.9,2.747]
[1742109731239,2.51296556,606.59,605.9,2.747]
[1742109731445,2.51296556,606.59,605.9,4.134]
[1742109732746,2.51296556,606.57,605.9,4.134]
[1742109733148,6.15259088,606.57,605.9,4.134]
[1742109733342,3.63962532,606.56,605.9,4.134]
[1742109733543,3.63962532,606.55,605.9,4.134]
[1742109733747,2.51296556,606.57,605.9,4.134]
[1742109734746,2.51296556,606.55,605.9,4.134]
[1742109736552,0.32968482,606.64,605.9,4.134]
[1742109777069,0.32968482,606.64,605.91,1.1597965]
[1742109777773,0.32968482,606.64,604.39,1.22974189]
[1742109777978,0.32968482,606.64,604.5,0.33085194]
[1742109778172,0.32968482,606.64,604.51,1.46276553]
[1742109778372,0.32968482,606.64,604.61,0.33079175]
[1742109778572,0.32968482,606.64,604.62,1.46276553]
[1742109778771,0.32968482,606.64,604.72,0.33073157]
[1742109779077,0.32968482,606.64,604.73,1.46276553]
[1742109779272,0.32968482,606.64,604.75,0.33071517]
[1742109779481,0.32968482,606.64,604.76,0.30307187]
[1742109779679,0.32968482,606.64,604.78,0.33069876]
[1742109779879,0.32968482,606.64,604.79,0.30307187]
[1742109780079,0.32968482,606.64,604.81,0.33068236]
[1742109780274,0.32968482,606.64,604.82,0.30307187]
[1742109780576,0.32968482,606.64,604.84,0.33066596]
[1742109781083,0.32968482,606.64,604.85,0.30307308]
[1742109781282,0.32968482,606.64,604.87,0.33064956]
[1742109781577,0.32968482,606.64,604.88,0.30307308]
[1742109781782,0.32968482,606.64,604.89,0.30307308]
[1742109781983,0.32968482,606.64,604.91,0.33062769]
[1742109782282,0.32968482,606.64,604.92,0.30307308]
[1742109782483,0.32968482,606.64,604.94,0.3306113]
[1742109782676,0.32968482,606.64,604.95,1.46276674]
[1742109782879,0.32968482,606.64,604.97,0.3305949]
[1742109783075,0.32968482,606.64,604.98,0.30307308]
[1742109783281,0.32968482,606.64,605.0,0.33057851]
[1742109783479,0.32968482,606.64,605.01,0.30307308]
[1742109783677,0.32968482,606.64,605.03,0.33056212]
[1742109783877,0.32968482,606.64,605.04,1.46276674]
[1742109784078,0.32968482,606.64,605.06,0.33054573]
[1742109784382,0.32968482,606.64,605.07,0.30307219]
[1742109784585,0.32968482,606.64,605.09,0.33052934]
[1742109784884,0.32968482,606.64,605.1,0.30307219]
[1742109785085,0.32968482,606.64,605.12,0.33051295]
[1742109785276,0.32968482,606.64,605.13,1.46276585]
[1742109785478,0.32968482,606.64,605.15,0.33049657]
[1742109785679,0.32968482,606.64,605.16,0.30307219]
[1742109785878,0.32968482,606.64,605.18,0.33048018]
[1742109786079,0.32968482,606.64,605.19,0.30307219]
[1742109786285,1.5846428,607.5,605.21,0.3304638]
[1742109786483,0.32927772,607.39,605.22,0.30307219]
[1742109786686,0.32927772,607.39,605.24,0.33044742]
[1742109786981,0.32927772,607.39,605.25,0.30307219]
[1742109787185,0.32927772,607.39,605.27,0.33043104]
[1742109787487,2.51296556,607.29,605.28,0.30307219]
[1742109787788,0.32934279,607.27,605.3,0.33041467]
[1742109788088,0.32934279,607.27,605.31,0.30307219]
[1742109788287,0.32934279,607.27,605.33,0.33039829]
[1742109788586,0.32934279,607.27,605.34,1.46276585]
[1742109788886,0.32934279,607.27,605.36,0.33038192]
[1742109789081,0.32934279,607.27,605.37,0.30307219]
[1742109789283,0.32934279,607.27,605.39,0.33036554]
[1742109789488,0.32934279,607.27,605.4,1.46276585]
[1742109789688,0.32934279,607.27,605.42,0.33034917]
[1742109790086,0.32934279,607.27,605.43,1.46275866]
[1742109790283,0.32934279,607.27,605.45,0.33033281]
[1742109790688,0.32934279,607.27,605.46,1.46275866]
[1742109790884,0.32934279,607.27,605.48,0.33031644]
[1742109791088,0.32934279,607.27,605.49,0.303065]
[1742109791391,0.32934279,607.27,605.5,0.33030553]
[1742109791590,0.32934279,607.27,605.51,0.303065]
[1742109791790,0.32934279,607.27,605.52,0.33029462]
[1742109791992,0.32934279,607.27,605.53,0.303065]
[1742109792188,0.32934279,607.27,605.54,0.33028371]
[1742109792387,0.32934279,607.27,605.55,0.303065]
[1742109792586,3.96534147,607.27,605.55,0.303065]
[1742109792786,3.63599868,607.26,605.56,1.15969366]
[1742109792992,3.63599868,607.25,605.57,1.46275866]
[1742109793191,3.63599868,607.24,605.58,0.303065]
[1742109793392,3.63599868,607.23,605.58,0.303065]
[1742109793591,3.63599868,607.22,605.59,1.15969366]
[1742109793889,0.32938076,607.2,605.6,0.63331599]
[1742109794088,0.32938076,607.2,605.61,0.63331053]
[1742109794288,0.32938076,607.2,605.62,1.79299874]
[1742109794489,0.32938076,607.2,605.63,0.63329963]
[1742109794691,0.32938076,607.2,605.64,0.63329417]
[1742109794892,0.32938076,607.2,605.65,0.63328872]
[1742109795087,0.32938076,607.2,605.66,0.63328327]
[1742109795293,1.91501276,607.2,605.67,0.63327782]
[1742109795496,0.32938076,607.2,605.68,0.63327237]
[1742109795688,0.32938076,607.2,605.69,0.63326691]
[1742109795888,0.32938076,607.2,605.7,0.6332518]
[1742109796090,0.32938076,607.2,605.71,0.63324635]
[1742109796290,0.32938076,607.2,605.72,0.6332409]
[1742109796493,0.32938076,607.2,605.73,0.63323545]
[1742109796688,0.32938076,607.2,605.74,0.63323]
[1742109796894,0.32938076,607.2,605.75,0.30305534]
[1742109797087,0.32938076,607.2,605.75,1.462749]
[1742109797290,2.51296556,607.03,605.76,0.30305534]
[1742109797487,0.32947843,607.02,605.76,0.30305534]
[1742109797688,0.32947843,607.02,605.77,1.15969366]
[1742109797894,0.32947843,607.02,605.78,0.30305534]
[1742109798086,0.32947843,607.02,605.79,1.15969366]
[1742109798287,0.32947843,607.02,605.8,0.30305534]
[1742109800796,0.32947843,607.02,605.81,0.30305343]
[1742109800996,0.32947843,607.02,605.82,0.30305343]
[1742109801296,0.32947843,607.02,605.83,0.30305343]
[1742109801698,0.32947843,607.02,605.84,1.15969366]
[1742109801897,0.32947843,607.02,605.85,0.30305343]
[1742109802498,0.32947843,607.02,605.86,1.15969366]
[1742109802701,0.32947843,607.02,605.87,0.30305343]
[1742109802896,0.32947843,607.02,605.88,1.15969366]
[1742109803097,0.32947843,607.02,605.89,0.30305343]
[1742109803500,0.32947843,607.02,605.9,1.15969366]
[1742109803700,0.32947843,607.02,605.91,0.30302922]
[1742109803895,0.32947843,607.02,605.92,1.15969366]
[1742109804201,0.32947843,607.02,605.93,0.30302922]
[1742109804701,0.32947843,607.02,605.94,1.15969366]
[1742109805500,0.32947843,607.02,605.75,1.15969366]
[1742109805695,0.32947843,607.02,605.76,0.63319561]
[1742109805900,0.32947843,607.02,605.77,0.30303185]
[1742109806099,0.32947843,607.02,605.78,1.15969366]
[1742109806296,0.32947843,607.02,605.79,0.30303185]
[1742109806704,0.32947843,607.02,605.8,1.15969366]
[1742109806903,0.32947843,607.02,605.81,0.30303185]
[1742109807604,0.32947843,607.02,605.81,1.71503185]
[1742109807800,0.32947843,607.02,605.82,1.46272551]
[1742109808006,0.32947843,607.02,605.83,0.30303185]
[1742109808304,0.32947843,607.02,605.84,1.15969366]
[1742109808605,0.32947843,607.02,605.85,0.30303185]
[1742109809203,0.32947843,607.02,605.86,1.15969366]
[1742109809505,0.32947843,607.02,605.87,0.30303185]
[1742109809906,3.96547711,607.02,605.88,1.15969366]
[1742109810106,3.63599868,607.01,605.89,0.30303185]
[1742109810307,3.63599868,607.0,605.89,0.30303185]
[1742109810503,3.6431787,606.99,605.9,1.15969366]
[1742109810707,0.32947843,607.02,605.91,0.30303185]
[1742109811504,0.32947843,607.02,605.92,1.15969366]
[1742109811713,0.32947843,607.02,605.93,0.30303185]
[1742109812315,0.32947843,607.02,605.94,1.15969366]
[1742109812510,0.32947843,607.02,605.95,0.30303185]
[1742109813118,0.32947843,607.02,605.96,1.15969366]
[1742109813310,0.32947843,607.02,605.97,0.30303185]
[1742109814017,0.32947843,607.02,605.98,1.15969366]
[1742109814213,0.32947843,607.02,605.99,0.30303185]
[1742109814410,0.32947843,607.02,606.0,1.15969366]
[1742109814613,0.32947843,607.02,606.01,0.30303185]
[1742109814910,0.32947843,607.02,606.02,1.15969366]
[1742109816211,0.32947843,607.02,605.82,1.15969366]
[1742109816411,0.32947843,607.02,605.83,0.63313445]
[1742109816615,0.32947843,607.02,605.84,0.30300884]
[1742109816816,0.32947843,607.02,605.85,1.15969366]
[1742109817018,0.32947843,607.02,605.86,0.30300884]
[1742109817317,0.32947843,607.02,605.87,1.15969366]
[1742109817513,0.32947843,607.02,605.88,0.30300884]
[1742109817914,0.32947843,607.02,605.89,1.15969366]
[1742109818114,0.32947843,607.02,605.9,0.30300884]
[1742109818620,0.32947843,607.02,605.91,1.15969366]
[1742109818920,0.32947843,607.02,605.92,0.30300884]
[1742109819314,0.32947843,607.02,605.93,1.15969366]
[1742109819514,0.32947843,607.02,605.94,0.30300884]
[1742109820115,0.32947843,607.02,605.93,1.15969366]
[1742109820317,0.32947843,607.02,605.95,1.15969366]
[1742109821224,0.32947843,607.02,605.93,1.15969366]
[1742109822116,0.32947843,607.02,605.93,2.63769366]
[1742109822516,0.32947843,607.02,605.94,1.15969366]
[1742109832133,0.32947843,607.02,605.95,0.30298993]
[1742109832434,0.32947843,607.02,605.96,1.15969366]
[1742109832628,0.32947843,607.02,605.97,0.30298993]
[1742109833136,0.32947843,607.02,605.98,1.15969366]
[1742109833336,0.32947843,607.02,605.99,0.30298618]
[1742109833537,0.32947843,607.02,606.0,1.15969366]
[1742109834437,0.32947843,607.02,605.94,1.15969366]
[1742109834635,0.32947843,607.02,605.95,0.3029926]
[1742109835039,0.32947843,607.02,605.96,1.15969366]
[1742109835235,0.32947843,607.02,605.97,0.3029926]
[1742109835537,0.32947843,607.02,605.98,1.15969366]
[1742109835739,0.32947843,607.02,605.99,0.30298947]
[1742109836339,0.32947843,607.02,606.0,1.15969366]
[1742109837236,0.32947843,607.02,605.94,1.15969366]
[1742109837438,0.32947843,607.02,605.95,0.30299235]
[1742109837939,0.32947843,607.02,605.96,1.15969366]
[1742109838139,0.32947843,607.02,605.97,0.30299235]
[1742109838539,0.32947843,607.02,605.98,1.15969366]
[1742109838739,0.32947843,607.02,605.99,0.30299235]
[1742109839235,0.32947843,607.02,605.98,1.15969366]
[1742109839638,0.32947843,607.02,605.94,1.15969366]
[1742109839836,0.32947843,607.02,605.95,0.30299289]
[1742109840843,0.32947843,607.02,605.96,1.15969366]
[1742109841046,0.32947843,607.02,605.97,0.30299289]
[1742109841446,0.32947843,607.02,605.98,1.15969366]
[1742109842042,0.32947843,607.02,605.94,1.15969366]
[1742109842243,0.32947843,607.02,605.95,0.3029858]
[1742109842544,0.32947843,607.02,605.96,1.15969366]
[1742109842741,0.32947843,607.02,605.97,0.3029858]
[1742109843239,0.32947843,607.02,605.98,1.15969366]
[1742109843444,0.32947843,607.02,605.99,0.3029858]
[1742109843644,0.32947843,607.02,605.99,1.8799858]
[1742109843844,0.32947843,607.02,606.0,0.3029858]
[1742109844146,0.32947843,607.02,606.01,1.15969366]
[1742109844839,0.32947843,607.02,606.0,1.15969366]
[1742109845045,0.32947843,607.02,606.01,0.30298868]
[1742109845345,0.32947843,607.02,606.02,1.15969366]
[1742109845941,0.32947843,607.02,606.0,1.15969366]
[1742109846345,0.32947843,607.02,606.01,0.30298893]
[1742109846543,0.32947843,607.02,606.02,1.15969366]
[1742109846745,0.32947843,607.02,606.0,1.15969366]
[1742109846945,0.32947843,607.02,606.01,0.30298893]
[1742109847441,0.32947843,607.02,606.02,1.15969366]
[1742109847647,0.32947843,607.02,606.02,2.17269366]
[1742109848347,0.32947843,607.02,606.03,1.15969366]
[1742109849046,0.32947843,607.02,606.04,0.30298893]
[1742109849441,0.32947843,607.02,606.05,1.15969366]
[1742109849847,0.32947843,607.02,606.06,0.30298003]
[1742109850242,0.32947843,607.02,606.07,1.15969366]
[1742109850641,0.32947843,607.02,606.03,1.15969366]
[1742109850847,0.32947843,607.02,606.04,0.30298183]
[1742109851343,0.32947843,607.02,606.05,1.15969366]
[1742109852349,0.32947843,607.02,606.03,1.15969366]
[1742109852646,0.32947843,607.02,606.04,0.30299242]
[1742109853443,0.32947843,607.02,606.05,1.15969366]
[1742109854244,0.32947843,607.02,606.03,1.15969366]
[1742109859050,0.32947843,607.02,606.03,1.48971032]
[1742109859250,0.32947843,607.02,606.04,1.46259126]
[1742109859456,0.32947843,607.02,606.04,1.15969366]
[1742109859756,0.32947843,607.02,606.05,1.46259054]
[1742109859951,0.32947843,607.02,606.06,0.30289688]
[1742109860258,0.32947843,607.02,606.07,1.15969366]
[1742109860451,0.32947843,607.02,606.08,0.30289688]
[1742109860856,0.32947843,607.02,606.07,1.15969366]
[1742109861051,0.32947843,607.02,606.08,0.30288553]
[1742109861652,5.23779649,607.62,606.09,1.46257919]
[1742109861856,0.32916392,607.6,606.1,0.30288553]
[1742109862251,0.32916392,607.6,606.11,0.3299731]
[1742109862457,0.32916392,607.6,606.12,0.30288553]
[1742109862655,0.32916392,607.6,606.12,0.63285319]
[1742109862856,0.32916392,607.6,606.13,1.46257919]
[1742109863051,0.32916392,607.6,606.14,0.30288553]
[1742109863262,0.32916392,607.6,606.15,0.30284771]
[1742109863459,5.56556745,607.6,606.16,1.15969366]
[1742109863656,5.23637406,607.59,606.17,0.30284771]
[1742109863854,0.32918017,607.57,606.17,0.30284771]
[1742109864059,0.32918017,607.57,606.18,0.30285188]
[1742109864358,0.32918017,607.57,606.19,0.30285188]
[1742109865061,0.32918017,607.57,606.2,1.15969366]
[1742109865254,0.32918017,607.57,606.21,0.3028521]
[1742109865456,0.32918017,607.57,606.22,1.15969366]
[1742109865660,0.32918017,607.57,606.23,0.3028521]
[1742109865860,0.32918017,607.57,606.24,1.15969366]
[1742109866057,0.32918017,607.57,606.25,0.3028521]
[1742109866258,0.32918017,607.57,606.24,1.15969366]
[1742109866658,0.32918017,607.57,606.13,1.15969366]
[1742109866858,0.32918017,607.57,606.14,0.30282429]
[1742109867655,0.32918017,607.57,606.15,1.15969366]
[1742109867855,0.32918017,607.57,606.16,0.30282429]
[1742109868462,0.32918017,607.57,606.17,1.15969366]
[1742109869062,0.32918017,607.57,606.18,1.15969366]
[1742109869764,0.32918017,607.57,606.19,1.15969366]
[1742109870466,0.32918017,607.57,606.2,2.55669366]
[1742109870863,0.32918017,607.57,606.21,0.3029102]
[1742109871062,0.32918017,607.57,606.2,1.397]
[1742109872668,2.51296556,607.46,606.2,1.397]
[1742109872966,0.32925062,607.44,606.2,1.397]
[1742109873770,1.91525489,607.44,606.2,1.397]
[1742109874682,5.55688656,607.44,606.2,1.397]
[1742109874968,5.22763594,607.43,606.2,1.397]
[1742109875170,0.32926688,607.41,606.2,1.397]
[1742109875369,1.91527115,607.41,606.2,1.397]
[1742109875567,0.32926688,607.41,606.2,1.397]
[1742109877766,0.32926688,607.41,606.21,1.667]
[1742109888970,1.91528662,607.41,606.21,1.667]
[1742109889171,0.32926688,607.41,606.21,1.667]
[1742109889772,0.32926688,607.41,606.22,1.098]
[1742109894183,0.32926688,607.41,606.23,1.397]
[1742109899693,2.51296556,607.4,606.23,1.397]
[1742109900890,4.0989853,607.4,606.23,1.397]
[1742109901087,3.64163167,607.39,606.23,1.397]
[1742109901286,1.58601974,607.38,606.23,1.397]
[1742109901491,0.32929399,607.36,606.23,1.397]
[1742109902397,1.91531373,607.36,606.23,1.397]
[1742109905295,2.51296556,607.21,606.23,1.397]
[1742109905496,0.32938618,607.19,606.23,1.397]
[1742109906298,1.91540592,607.19,606.23,1.397]
[1742109907796,2.51296556,607.13,606.23,1.397]
[1742109908000,0.32942959,607.11,606.23,1.397]
[1742109909902,3.97106126,607.11,606.23,1.397]
[1742109910095,3.64163167,607.1,606.23,1.397]
[1742109910296,2.51296556,607.14,606.22,1.098]
[1742109910297,3.97107211,607.09,606.22,1.098]
[1742109910499,3.97107754,607.08,606.22,1.098]
[1742109910702,0.32945129,607.07,606.22,1.098]
[1742109911100,0.32945129,607.07,606.23,1.649]
[1742109912905,0.32945129,607.07,606.24,1.427]
[1742109935421,3.95567153,607.07,606.24,1.427]
[1742109935621,0.32945129,607.07,606.24,1.427]
[1742109939627,2.84241685,607.07,606.24,1.427]
[1742109940827,1.58380235,607.06,606.24,1.427]
[1742109941126,0.32946215,607.05,606.24,1.427]
[1742109941527,1.9132645,607.05,606.24,1.427]
[1742109941722,2.51296556,606.88,606.24,1.427]
[1742109941920,2.51296556,606.88,606.23,1.649]
[1742109942720,2.51296556,606.88,606.24,1.6]
[1742109943126,2.51296556,606.87,606.24,1.6]
[1742109944721,2.51296556,606.9,606.24,1.6]
[1742109944928,0.32954901,606.89,606.24,1.6]
[1742109945324,0.32954901,606.89,606.25,1.622]
[1742109947328,2.84251457,606.89,606.25,1.622]
[1742109949433,0.32954901,606.89,606.25,1.622]
[1742109964647,0.32954901,606.89,606.24,1.6]
[1742109967344,0.32954901,606.89,606.25,1.652]
[1742109968351,0.32954901,606.89,606.26,1.359]
[1742109985357,0.32954901,606.89,606.25,1.652]
[1742109986664,0.32954901,606.89,606.26,1.634]
[1742109988164,0.32954901,606.89,606.27,1.564]
[1742109991367,2.51296556,606.75,606.27,1.564]
[1742109991569,0.32963048,606.74,606.27,1.564]
[1742109994167,2.51296556,606.71,606.27,1.564]
[1742109994371,0.32965221,606.7,606.27,1.564]
[1742109999671,2.51296556,606.68,606.27,1.564]
[1742109999873,0.32966851,606.67,606.27,1.564]
[1742110000473,0.32966851,606.67,606.26,1.634]
[1742110001969,2.84263407,606.67,606.26,1.634]
[1742110002372,1.58682512,606.66,606.26,1.634]
[1742110002571,0.32967938,606.65,606.26,0.29116513]
[1742110002972,0.32967938,606.65,606.12,1.525]
[1742110022879,1.91880605,606.65,606.12,1.525]
[1742110023078,5.49427136,606.65,605.24,0.28710858]
[1742110023282,1.58912667,606.64,605.25,0.30329747]
[1742110023481,0.32969025,606.63,605.26,1.18190998]
[1742110023685,0.32969025,606.63,605.27,1.48520745]
[1742110023984,0.32969025,606.63,605.28,0.30329747]
[1742110024488,2.51296556,606.51,605.29,1.18190998]
[1742110024787,0.32976092,606.5,605.3,0.30329747]
[1742110025385,1.91888759,606.5,605.3,0.30329747]
[1742110025582,1.91888759,606.5,605.31,1.18190998]
[1742110025783,1.91888759,606.5,605.32,0.30329747]
[1742110025980,1.91888759,606.5,605.33,1.18190998]
[1742110026384,1.91888759,606.5,605.34,0.30328847]
[1742110026786,1.91888759,606.5,605.35,1.18190998]
[1742110026982,1.91888759,606.5,605.36,0.30328847]
[1742110027287,1.91888759,606.5,605.37,1.18190998]
[1742110027490,1.91888759,606.5,605.38,0.30328847]
[1742110027984,1.91888759,606.5,605.39,1.18190998]
[1742110028385,1.91888759,606.5,605.4,1.48519845]
[1742110028589,1.91888759,606.5,605.41,0.30328847]
[1742110028890,1.91888759,606.5,605.42,1.18190998]
[1742110029092,1.91888759,606.5,605.43,0.30328847]
[1742110029591,1.91888759,606.5,605.44,1.18190998]
[1742110029791,1.91888759,606.5,605.45,0.30328847]
[1742110029993,4.43185315,606.5,605.46,1.18190998]
[1742110030195,1.58912667,606.49,605.47,0.3032881]
[1742110030386,0.32977179,606.48,605.47,0.3032881]
[1742110030692,0.32977179,606.48,605.48,1.18190998]
[1742110030893,0.32977179,606.48,605.49,0.3032881]
[1742110031086,0.32977179,606.48,605.49,1.48519808]
[1742110031290,0.32977179,606.48,605.5,0.3032881]
[1742110031687,0.32977179,606.48,605.49,1.18190998]
[1742110031887,0.32977179,606.48,605.51,1.18190998]
[1742110032594,0.32977179,606.48,605.52,1.18190998]
[1742110033194,0.32977179,606.48,605.53,0.30326083]
[1742110033394,0.32977179,606.48,605.54,1.18190998]
[1742110033894,0.32977179,606.48,605.55,1.18190998]
[1742110034891,0.32977179,606.48,605.56,1.18190998]
[1742110035595,0.32977179,606.48,605.57,1.18190998]
[1742110036396,0.32977179,606.48,605.58,1.18190998]
[1742110036897,0.32977179,606.48,605.59,1.18190998]
[1742110037499,0.32977179,606.48,605.27,0.28718558]
[1742110037899,0.32977179,606.48,605.28,0.30326167]
[1742110038196,0.32977179,606.48,605.29,1.18187695]
[1742110038402,0.32977179,606.48,605.3,0.30326167]
[1742110038902,0.32977179,606.48,605.31,1.18187695]
[1742110039100,0.32977179,606.48,605.32,0.30326167]
[1742110039902,0.32977179,606.48,605.33,1.18187695]
[1742110040103,0.32977179,606.48,605.34,0.30326167]
[1742110041002,0.32977179,606.48,605.35,1.18187695]
[1742110041404,0.32977179,606.48,605.36,0.63364359]
[1742110041600,0.32977179,606.48,605.37,0.63363813]
[1742110041804,0.32977179,606.48,605.38,0.30326167]
[1742110042005,0.32977179,606.48,605.38,1.81550962]
[1742110042300,0.32977179,606.48,605.39,1.48513862]
[1742110042502,0.32977179,606.48,605.4,0.30326167]
[1742110043206,0.32977179,606.48,605.41,1.18187695]
[1742110043405,0.32977179,606.48,605.42,0.33034917]
[1742110043608,0.32977179,606.48,605.43,0.30326167]
[1742110043804,0.32977179,606.48,605.44,0.33033826]
[1742110044005,0.32977179,606.48,605.45,0.30326167]
[1742110044404,0.32977179,606.48,605.46,1.4850284]
[1742110044708,0.32977179,606.48,605.47,0.63347334]
[1742110044909,0.32977179,606.48,605.48,0.63346789]
[1742110045106,0.32977179,606.48,605.49,0.63346243]
[1742110045306,0.32977179,606.48,605.5,0.63345698]
[1742110045503,0.32977179,606.48,605.51,0.63345152]
[1742110045709,0.32977179,606.48,605.52,0.63344607]
[1742110045906,0.32977179,606.48,605.53,0.30315145]
[1742110048511,0.32977179,606.48,605.54,1.18187695]
[1742110048711,0.32977179,606.48,605.55,0.3031547]
[1742110049110,0.32977179,606.48,605.56,1.18187695]
[1742110049314,0.32977179,606.48,605.57,0.3031547]
[1742110049913,0.32977179,606.48,605.58,1.18187695]
[1742110050213,0.32977179,606.48,605.59,0.3031547]
[1742110050410,0.32977179,606.48,605.59,1.48503165]
[1742110050616,0.32977179,606.48,605.6,0.3031547]
[1742110050916,0.32977179,606.48,605.6,1.48503165]
[1742110051215,0.32977179,606.48,605.61,1.18187695]
[1742110051714,0.32977179,606.48,605.62,1.18187695]
[1742110052516,0.32977179,606.48,605.63,1.18187695]
[1742110053012,0.32977179,606.48,605.64,1.18187695]
[1742110053417,0.32977179,606.48,605.65,0.30316088]
[1742110053618,0.32977179,606.48,605.65,1.48503783]
[1742110053819,0.32977179,606.48,605.65,1.18187695]
[1742110054117,0.32977179,606.48,605.66,1.18187695]
[1742110055112,0.32977179,606.48,605.52,0.33029462]
[1742110055113,0.32977179,606.48,605.67,1.18187695]
[1742110055920,0.32977179,606.48,605.68,1.18187695]
[1742110056119,0.32977179,606.48,605.52,0.33029462]
[1742110056321,0.32977179,606.48,605.53,0.30318921]
[1742110056718,0.32977179,606.48,605.54,1.17957677]
[1742110056916,0.32977179,606.48,605.55,0.30318921]
[1742110057116,0.32977179,606.48,605.56,1.17957677]